[Event "EYTCC U18 Girls 2018"]
[Site "Bad Blankeburg"]
[Date "2018.07.12"]
[Round "1"]
[White "Sieber, Fiona"]
[Black "Muetsch, Annmarie"]
[Result "1-0"]
[ECO "C63"]
[WhiteElo "2283"]
[BlackElo "2146"]
[Annotator "NA"]
[PlyCount "43"]
[EventDate "2018.07.12"]
[EventType "swiss"]
[EventCountry "GER"]
[SourceTitle "playchess.com"]
[Source "ChessBase"]
[SourceQuality "1"]
[TimeControl "40/5400+30:1800+30"]

1. e4 {[%emt 0:00:00]} e5 {[%emt 0:00:00]} 2. Nf3 {[%emt 0:00:00]} Nc6 {[%emt 0:00:00]} 3. Bb5 {[%emt 0:00:00]} f5 {[%emt 0:00:00]} 4. Nc3 {[%emt 0:00:08]} fxe4 {[%emt 0:00:40]} 5. Nxe4 {[%emt 0:00:22]} Be7 {[%emt 0:00:16]} 6. d4 {[%emt 0:09:43]} exd4 {[%emt 0:00:14]} 7. Nxd4 {[%emt 0:04:42]} Nf6 {[%emt 0:00:57]} 8. Nxc6 {[%emt 0:05:52]} dxc6 {[%emt 0:04:20]} 9. Nxf6+ {[%emt 0:06:36]} Bxf6 {[%emt 0:00:06]} 10. Qxd8+ {[%emt 0:00:06]} Bxd8 {[%emt 0:08:48]} 11. Bc4 {[%emt 0:01:10]} Bf5 {[%emt 0:01:43]} 12. O-O {[%emt 0:06:16]} Bxc2 {[%emt 0:07:07]} 13. Re1+ {[%emt 0:00:16]} Kf8 {[%emt 0:00:04]} 14. Bf4 {[%emt 0:06:41]} h5 {[%emt 0:13:53]} 15. Re2 {[%emt 0:07:33]} Bf5 {[%emt 0:14:13]} 16. Rae1 {[%emt 0:10:20]} Bd7 {[%emt 0:04:30]} 17. Re3 {[%emt 0:10:04]} Rc8 {[%emt 0:04:41]} 18. Ra3 {[%emt 0:08:12]} a6 {[%emt 0:10:12]} 19. Be3 {[%emt 0:00:07]} b6 {[%emt 0:02:50]} 20. Rxa6 {[%emt 0:00:35]} Bf6 {[%emt 0:01:44]} 21. Ra7 {[%emt 0:02:19]} Bd8 {[%emt 0:09:02]} 22. Bxb6 {[%emt 0:02:02]} 1-0

[Event "EYTCC U18 Girls 2018"]
[Site "Bad Blankeburg"]
[Date "2018.07.12"]
[Round "1"]
[White "Sieber, Fiona"]
[Black "Muetsch, Annmarie"]
[Result "*"]
[ECO "C50"]
[WhiteElo "2283"]
[BlackElo "2146"]
[Annotator "NA"]
[PlyCount "38"]
[EventDate "2018.07.12"]
[EventType "swiss"]
[EventCountry "GER"]
[SourceTitle "playchess.com"]
[Source "ChessBase"]
[SourceQuality "1"]
[TimeControl "40/5400+30:1800+30"]

1. e4 {[%emt 0:00:00]} e5 {[%emt 0:00:00]} 2. Nf3 {[%emt 0:00:00]} Nc6 {[%emt 0:00:00]} 3. Bc4 {[%emt 0:00:31]} Bc5 {[%emt 0:00:01]} 4. O-O {[%emt 0:00:04]} Nf6 {[%emt 0:00:52]} 5. d3 {[%emt 0:00:03]} O-O {[%emt 0:00:35]} 6. h3 {[%emt 0:01:06]} h6 {[%emt 0:03:28]} 7. a4 {[%emt 0:07:51]} a6 {[%emt 0:01:42]} 8. Re1 {[%emt 0:02:05]} Re8 {[%emt 0:04:35]} 9. c3 {[%emt 0:11:24]} Ba7 {[%emt 0:00:54]} 10. Nbd2 {[%emt 0:00:52]} d6 {[%emt 0:13:02]} 11. b4 {[%emt 0:00:30]} Qe7 {[%emt 0:22:43]} 12. Qc2 {[%emt 0:23:43]} Nh5 {[%emt 0:06:50]} 13. Nf1 {[%emt 0:06:07]} Qf6 {[%emt 0:01:34]} 14. Qe2 {[%emt 0:01:55]} Ne7 {[%emt 0:04:45]} 15. Be3 {[%emt 0:19:39]} c6 {[%emt 0:14:23]} 16. Bxa7 {[%emt 0:07:03]} Rxa7 {[%emt 0:00:05]} 17. Qe3 {[%emt 0:00:28]} Ra8 {[%emt 0:00:16]} 18. d4 {[%emt 0:05:03]} Ng6 {[%emt 0:03:59]} 19. Ng3 {[%emt 0:01:51]} Nhf4 {[%emt 0:03:31]} *

[Event "EYTCC U18 Girls 2018"]
[Site "Bad Blankeburg"]
[Date "2018.07.12"]
[Round "1"]
[White "Gajcin, Marina"]
[Black "Blazeka, Mihaela"]
[Result "1-0"]
[ECO "C50"]
[WhiteElo "2269"]
[BlackElo "2054"]
[Annotator "NA"]
[PlyCount "79"]
[EventDate "2018.07.12"]
[EventType "swiss"]
[EventCountry "GER"]
[SourceTitle "playchess.com"]
[Source "ChessBase"]
[SourceQuality "1"]
[TimeControl "40/5400+30:1800+30"]

1. e4 {[%emt 0:00:00]} e5 {[%emt 0:00:00]} 2. Nf3 {[%emt 0:00:00]} Nc6 {[%emt 0:00:00]} 3. Bc4 {[%emt 0:00:31]} Bc5 {[%emt 0:00:01]} 4. O-O {[%emt 0:00:04]} Nf6 {[%emt 0:00:52]} 5. d3 {[%emt 0:00:03]} O-O {[%emt 0:00:35]} 6. h3 {[%emt 0:01:06]} h6 {[%emt 0:03:28]} 7. a4 {[%emt 0:07:51]} a6 {[%emt 0:01:42]} 8. Re1 {[%emt 0:02:05]} Re8 {[%emt 0:04:35]} 9. c3 {[%emt 0:11:24]} Ba7 {[%emt 0:00:54]} 10. Nbd2 {[%emt 0:00:52]} d6 {[%emt 0:13:02]} 11. b4 {[%emt 0:00:30]} Qe7 {[%emt 0:22:43]} 12. Qc2 {[%emt 0:23:43]} Nh5 {[%emt 0:06:50]} 13. Nf1 {[%emt 0:06:07]} Qf6 {[%emt 0:01:34]} 14. Qe2 {[%emt 0:01:55]} Ne7 {[%emt 0:04:45]} 15. Be3 {[%emt 0:19:39]} c6 {[%emt 0:14:23]} 16. Bxa7 {[%emt 0:07:03]} Rxa7 {[%emt 0:00:05]} 17. Qe3 {[%emt 0:00:28]} Ra8 {[%emt 0:00:16]} 18. d4 {[%emt 0:05:03]} Ng6 {[%emt 0:03:59]} 19. Ng3 {[%emt 0:01:51]} Nhf4 {[%emt 0:03:31]} 20. Rad1 {[%emt 0:04:49]} h5 {[%emt 0:07:08]} 21. dxe5 {[%emt 0:02:35]} Nxe5 {[%emt 0:02:13]} 22. Nxe5 {[%emt 0:00:22]} Rxe5 {[%emt 0:02:07]} 23. Bf1 {[%emt 0:02:43]} Rg5 {[%emt 0:02:02]} 24. Qd4 {[%emt 0:00:42]} Qxd4 {[%emt 0:01:18]} 25. Rxd4 {[%emt 0:00:10]} h4 {[%emt 0:00:18]} 26. e5 {[%emt 0:00:47]} dxe5 {[%emt 0:00:23]} 27. Rd8+ {[%emt 0:00:15]} Kh7 {[%emt 0:00:10]} 28. Ne4 {[%emt 0:00:15]} Rg6 {[%emt 0:01:15]} 29. Kh2 {[%emt 0:00:33]} Ne6 {[%emt 0:01:18]} 30. Re8 {[%emt 0:00:05]} Nc7 {[%emt 0:01:35]} 31. Rxe5 {[%emt 0:00:35]} Be6 {[%emt 0:00:40]} 32. Nc5 {[%emt 0:01:10]} Rf6 {[%emt 0:00:38]} 33. Nxb7 {[%emt 0:00:31]} Rxf2 {[%emt 0:00:24]} 34. Rh5+ {[%emt 0:00:34]} Kg8 {[%emt 0:00:46]} 35. Rxh4 {[%emt 0:00:25]} Nd5 {[%emt 0:00:25]} 36. Nc5 {[%emt 0:00:20]} Nxc3 {[%emt 0:00:55]} 37. Nxe6 {[%emt 0:00:04]} fxe6 {[%emt 0:00:10]} 38. Bc4 {[%emt 0:00:17]} Nd5 {[%emt 0:01:05]} 39. Rxe6 {[%emt 0:00:07]} Rf6 {[%emt 0:00:53]} 40. Rxc6 {[%emt 0:00:13]} 1-0

[Event "EYTCC U18 Girls 2018"]
[Site "Bad Blankeburg"]
[Date "2018.07.12"]
[Round "1"]
[White "Kiolbasa, Oliwia"]
[Black "Vlkova, Anezka"]
[Result "1-0"]
[ECO "B76"]
[WhiteElo "2189"]
[BlackElo "1889"]
[Annotator "NA"]
[PlyCount "47"]
[EventDate "2018.07.12"]
[EventType "swiss"]
[EventCountry "GER"]
[SourceTitle "playchess.com"]
[Source "ChessBase"]
[SourceQuality "1"]
[TimeControl "40/5400+30:1800+30"]

1. e4 {[%emt 0:00:00]} c5 {[%emt 0:00:00]} 2. Nf3 {[%emt 0:00:00]} d6 {[%emt 0:00:00]} 3. d4 {[%emt 0:00:00]} cxd4 {[%emt 0:00:00]} 4. Nxd4 {[%emt 0:00:03]} Nf6 {[%emt 0:00:00]} 5. Nc3 {[%emt 0:00:11]} g6 {[%emt 0:00:04]} 6. Be3 {[%emt 0:00:42]} Bg7 {[%emt 0:00:04]} 7. f3 {[%emt 0:01:19]} O-O {[%emt 0:00:08]} 8. Qd2 {[%emt 0:00:13]} Nc6 {[%emt 0:00:09]} 9. O-O-O {[%emt 0:02:23]} Nxd4 {[%emt 0:01:22]} 10. Bxd4 {[%emt 0:00:15]} Be6 {[%emt 0:00:09]} 11. Kb1 {[%emt 0:05:52]} Qc7 {[%emt 0:01:13]} 12. h4 {[%emt 0:01:26]} Rfc8 {[%emt 0:00:31]} 13. h5 {[%emt 0:03:13]} Qa5 {[%emt 0:01:11]} 14. hxg6 {[%emt 0:02:23]} hxg6 {[%emt 0:00:22]} 15. a3 {[%emt 0:02:49]} Rab8 {[%emt 0:01:18]} 16. Bd3 {[%emt 0:02:43]} b5 {[%emt 0:02:48]} 17. Qg5 {[%emt 0:03:36]} d5 {[%emt 0:03:45]} 18. Nxd5 {[%emt 0:23:48]} Bxd5 {[%emt 0:03:43]} 19. exd5 {[%emt 0:00:14]} b4 {[%emt 0:01:08]} 20. Bxg6 {[%emt 0:17:21]} fxg6 {[%emt 0:06:57]} 21. Qxg6 {[%emt 0:00:56]} Rb7 {[%emt 0:20:02]} 22. Rh7 {[%emt 0:07:03]} e5 {[%emt 0:04:06]} 23. Rdh1 {[%emt 0:00:13]} Kf8 {[%emt 0:12:53]} 24. Rh8+ {[%emt 0:01:32]} 1-0

[Event "EYTCC U18 Girls 2018"]
[Site "Bad Blankeburg"]
[Date "2018.07.12"]
[Round "1"]
[White "Egyed, Judit"]
[Black "Lehaci, Miruna Daria"]
[Result "*"]
[ECO "E20"]
[WhiteElo "2171"]
[BlackElo "2015"]
[Annotator "NA"]
[PlyCount "61"]
[EventDate "2018.07.12"]
[EventType "swiss"]
[EventCountry "GER"]
[SourceTitle "playchess.com"]
[Source "ChessBase"]
[SourceQuality "1"]
[TimeControl "40/5400+30:1800+30"]

1. d4 {[%emt 0:00:00]} Nf6 {[%emt 0:00:00]} 2. c4 {[%emt 0:00:00]} e6 {[%emt 0:00:00]} 3. Nc3 {[%emt 0:00:00]} Bb4 {[%emt 0:00:00]} 4. f3 {[%emt 0:00:00]} d5 {[%emt 0:01:08]} 5. a3 {[%emt 0:00:05]} Be7 {[%emt 0:00:20]} 6. e4 {[%emt 0:00:47]} dxe4 {[%emt 0:00:32]} 7. fxe4 {[%emt 0:00:08]} c5 {[%emt 0:00:27]} 8. d5 {[%emt 0:03:13]} exd5 {[%emt 0:00:12]} 9. cxd5 {[%emt 0:00:37]} Bd6 {[%emt 0:00:34]} 10. Nf3 {[%emt 0:02:25]} Nbd7 {[%emt 0:00:47]} 11. Bd3 {[%emt 0:02:56]} O-O {[%emt 0:00:39]} 12. O-O {[%emt 0:01:11]} Ng4 {[%emt 0:00:30]} 13. h3 {[%emt 0:03:49]} Nge5 {[%emt 0:00:33]} 14. Nxe5 {[%emt 0:05:14]} Nxe5 {[%emt 0:03:10]} 15. Bc2 {[%emt 0:01:56]} Ng6 {[%emt 0:07:57]} 16. Ne2 {[%emt 0:07:54]} Qc7 {[%emt 0:12:07]} 17. Bd2 {[%emt 0:04:10]} Bd7 {[%emt 0:04:45]} 18. Rc1 {[%emt 0:03:12]} Rae8 {[%emt 0:02:31]} 19. Kh1 {[%emt 0:06:09]} Qb6 {[%emt 0:12:48]} 20. b4 {[%emt 0:09:34]} Bb5 {[%emt 0:22:07]} 21. bxc5 {[%emt 0:05:58]} Bxc5 {[%emt 0:00:14]} 22. Rb1 {[%emt 0:02:02]} Qa6 {[%emt 0:06:18]} 23. Rxb5 {[%emt 0:08:20]} Qxb5 {[%emt 0:00:07]} 24. Ba4 {[%emt 0:00:09]} Qc4 {[%emt 0:00:43]} 25. Bxe8 {[%emt 0:01:32]} Rxe8 {[%emt 0:00:11]} 26. Ng3 {[%emt 0:02:33]} Bxa3 {[%emt 0:02:52]} 27. Qf3 {[%emt 0:01:51]} Qa4 {[%emt 0:04:32]} 28. Qxf7+ {[%emt 0:02:40]} Kh8 {[%emt 0:00:05]} 29. Bc3 {[%emt 0:04:41]} Rg8 {[%emt 0:03:45]} 30. Nf5 {[%emt 0:00:45]} Bf8 {[%emt 0:00:25]} 31. Nh6 {[%emt 0:00:06]} *

[Event "EYTCC U18 Girls 2018"]
[Site "Bad Blankeburg"]
[Date "2018.07.12"]
[Round "1"]
[White "Cvitan, Ena"]
[Black "Injac, Teodora"]
[Result "1-0"]
[ECO "E90"]
[WhiteElo "2125"]
[BlackElo "2302"]
[Annotator "NA"]
[PlyCount "79"]
[EventDate "2018.07.12"]
[EventType "swiss"]
[EventCountry "GER"]
[SourceTitle "playchess.com"]
[Source "ChessBase"]
[SourceQuality "1"]
[TimeControl "40/5400+30:1800+30"]

1. d4 {[%emt 0:00:00]} Nf6 {[%emt 0:00:00]} 2. c4 {[%emt 0:00:00]} g6 {[%emt 0:00:03]} 3. Nc3 {[%emt 0:00:09]} Bg7 {[%emt 0:00:10]} 4. e4 {[%emt 0:00:12]} d6 {[%emt 0:00:05]} 5. Nf3 {[%emt 0:00:09]} O-O {[%emt 0:00:06]} 6. h3 {[%emt 0:00:02]} Na6 {[%emt 0:05:13]} 7. Be3 {[%emt 0:02:35]} c5 {[%emt 0:01:24]} 8. d5 {[%emt 0:07:39]} e6 {[%emt 0:01:35]} 9. Bd3 {[%emt 0:05:07]} exd5 {[%emt 0:05:23]} 10. cxd5 {[%emt 0:01:49]} b5 {[%emt 0:28:11]} 11. Bxb5 {[%emt 0:35:35]} Nxe4 {[%emt 0:01:52]} 12. O-O {[%emt 0:04:14]} Nxc3 {[%emt 0:27:02]} 13. bxc3 {[%emt 0:00:25]} Nc7 {[%emt 0:07:13]} 14. Bc6 {[%emt 0:04:39]} Ba6 {[%emt 0:00:40]} 15. Re1 {[%emt 0:08:47]} Bxc3 {[%emt 0:00:58]} 16. Bh6 {[%emt 0:02:51]} Rb8 {[%emt 0:01:32]} 17. Rc1 {[%emt 0:11:23]} Bg7 {[%emt 0:03:49]} 18. Bg5 {[%emt 0:00:57]} f6 {[%emt 0:01:43]} 19. Bf4 {[%emt 0:02:55]} Rb6 {[%emt 0:03:43]} 20. Bd2 {[%emt 0:01:55]} Bb7 {[%emt 0:04:18]} 21. Ba5 {[%emt 0:02:09]} Ra6 {[%emt 0:01:14]} 22. Qd2 {[%emt 0:00:36]} Bxc6 {[%emt 0:02:32]} 23. dxc6 {[%emt 0:00:11]} Kh8 {[%emt 0:01:13]} 24. Re2 {[%emt 0:02:47]} Qc8 {[%emt 0:01:22]} 25. Re7 {[%emt 0:02:32]} Rxc6 {[%emt 0:00:06]} 26. Nd4 {[%emt 0:00:25]} Nd5 {[%emt 0:00:51]} 27. Nxc6 {[%emt 0:01:19]} Qxc6 {[%emt 0:00:01]} 28. Rxa7 {[%emt 0:01:02]} g5 {[%emt 0:00:21]} 29. g3 {[%emt 0:00:59]} Re8 {[%emt 0:01:02]} 30. Rd1 {[%emt 0:00:30]} Re5 {[%emt 0:00:15]} 31. Qb2 {[%emt 0:00:50]} h6 {[%emt 0:00:58]} 32. Qb8+ {[%emt 0:00:32]} Re8 {[%emt 0:00:29]} 33. Qb7 {[%emt 0:00:26]} Qxb7 {[%emt 0:00:10]} 34. Rxb7 {[%emt 0:00:02]} Re5 {[%emt 0:00:46]} 35. a4 {[%emt 0:01:04]} c4 {[%emt 0:00:24]} 36. Rb5 {[%emt 0:00:33]} c3 {[%emt 0:00:40]} 37. Rdxd5 {[%emt 0:00:32]} c2 {[%emt 0:00:20]} 38. Bd2 {[%emt 0:00:24]} Re1+ {[%emt 0:00:38]} 39. Kg2 {[%emt 0:00:24]} Rd1 {[%emt 0:00:35]} 40. Rb8+ {[%emt 0:00:43]} 1-0

[Event "EYTCC U18 Girls 2018"]
[Site "Bad Blankeburg"]
[Date "2018.07.12"]
[Round "1"]
[White "Pribylova, Sofie"]
[Black "Antolak, Julia"]
[Result "0-1"]
[ECO "A45"]
[WhiteElo "1931"]
[BlackElo "2282"]
[Annotator "NA"]
[PlyCount "62"]
[EventDate "2018.07.12"]
[EventType "swiss"]
[EventCountry "GER"]
[SourceTitle "playchess.com"]
[Source "ChessBase"]
[SourceQuality "1"]
[TimeControl "40/5400+30:1800+30"]

1. d4 {[%emt 0:00:00]} Nf6 {[%emt 0:00:00]} 2. Bf4 {[%emt 0:00:00]} e6 {[%emt 0:00:11]} 3. e3 {[%emt 0:00:00]} d5 {[%emt 0:00:09]} 4. Nf3 {[%emt 0:00:02]} Bd6 {[%emt 0:00:07]} 5. Bg3 {[%emt 0:00:10]} O-O {[%emt 0:01:25]} 6. Bd3 {[%emt 0:01:55]} c5 {[%emt 0:01:10]} 7. c3 {[%emt 0:00:33]} Qc7 {[%emt 0:02:15]} 8. Ne5 {[%emt 0:14:56]} Nbd7 {[%emt 0:08:13]} 9. f4 {[%emt 0:06:42]} c4 {[%emt 0:10:17]} 10. Bc2 {[%emt 0:01:31]} b5 {[%emt 0:02:38]} 11. a3 {[%emt 0:03:57]} Ne4 {[%emt 0:08:17]} 12. Nd2 {[%emt 0:05:56]} Bb7 {[%emt 0:06:35]} 13. O-O {[%emt 0:05:53]} f6 {[%emt 0:05:08]} 14. Nxd7 {[%emt 0:06:48]} Qxd7 {[%emt 0:00:06]} 15. Nf3 {[%emt 0:03:02]} a5 {[%emt 0:03:59]} 16. Qe2 {[%emt 0:12:34]} Qe7 {[%emt 0:06:45]} 17. Bh4 {[%emt 0:02:47]} Qc7 {[%emt 0:10:51]} 18. g4 {[%emt 0:05:55]} e5 {[%emt 0:04:59]} 19. fxe5 {[%emt 0:10:22]} fxe5 {[%emt 0:00:07]} 20. Bxe4 {[%emt 0:00:55]} dxe4 {[%emt 0:00:05]} 21. Nxe5 {[%emt 0:01:26]} Bxe5 {[%emt 0:00:09]} 22. dxe5 {[%emt 0:00:17]} Qxe5 {[%emt 0:03:29]} 23. Rxf8+ {[%emt 0:02:36]} Rxf8 {[%emt 0:00:50]} 24. a4 {[%emt 0:01:30]} h6 {[%emt 0:05:24]} 25. Rd1 {[%emt 0:02:02]} Rf3 {[%emt 0:02:55]} 26. axb5 {[%emt 0:05:47]} Qxb5 {[%emt 0:02:12]} 27. Rd4 {[%emt 0:00:43]} Kh7 {[%emt 0:00:13]} 28. Qxc4 {[%emt 0:03:58]} Qxb2 {[%emt 0:07:42]} 29. Rd8 {[%emt 0:00:07]} Qb6 {[%emt 0:06:45]} 30. Qg8+ {[%emt 0:02:03]} Kg6 {[%emt 0:00:01]} 31. Rd4 {[%emt 0:00:27]} Qb1+ {[%emt 0:00:14]} 0-1

[Event "EYTCC U18 Girls 2018"]
[Site "Bad Blankeburg"]
[Date "2018.07.12"]
[Round "1"]
[White "Katkov, Michelle"]
[Black "Rozman, Monika"]
[Result "*"]
[ECO "A45"]
[WhiteElo "1885"]
[BlackElo "2125"]
[Annotator "NA"]
[PlyCount "48"]
[EventDate "2018.07.12"]
[EventType "swiss"]
[EventCountry "GER"]
[SourceTitle "playchess.com"]
[Source "ChessBase"]
[SourceQuality "1"]
[TimeControl "40/5400+30:1800+30"]

1. d4 {[%emt 0:00:00]} Nf6 {[%emt 0:00:00]} 2. Bf4 {[%emt 0:00:00]} e6 {[%emt 0:00:11]} 3. e3 {[%emt 0:00:00]} d5 {[%emt 0:00:09]} 4. Nf3 {[%emt 0:00:02]} Bd6 {[%emt 0:00:07]} 5. Bg3 {[%emt 0:00:10]} O-O {[%emt 0:01:25]} 6. Bd3 {[%emt 0:01:55]} c5 {[%emt 0:01:10]} 7. c3 {[%emt 0:00:33]} Qc7 {[%emt 0:02:15]} 8. Ne5 {[%emt 0:14:56]} Nbd7 {[%emt 0:08:13]} 9. f4 {[%emt 0:06:42]} c4 {[%emt 0:10:17]} 10. Bc2 {[%emt 0:01:31]} b5 {[%emt 0:02:38]} 11. a3 $15 {[%emt 0:03:57]} Ne4 {[%emt 0:08:17]} 12. Nd2 {[%emt 0:05:56]} Bb7 {[%emt 0:06:35]} 13. O-O {[%emt 0:05:53]} f6 {[%emt 0:05:08]} 14. Nxd7 {[%emt 0:06:48]} Qxd7 {[%emt 0:00:06]} 15. Nf3 {[%emt 0:03:02]} a5 {[%emt 0:03:59]} 16. Qe2 {[%emt 0:12:34]} Qe7 {[%emt 0:06:45]} 17. Bh4 {[%emt 0:02:47]} Qc7 {[%emt 0:10:51]} 18. g4 {[%emt 0:05:55]} e5 {[%emt 0:04:59]} 19. fxe5 {[%emt 0:10:22]} fxe5 {[%emt 0:00:07]} 20. Bxe4 {[%emt 0:00:55]} dxe4 {[%emt 0:00:05]} 21. Nxe5 {[%emt 0:01:26]} Bxe5 {[%emt 0:00:09]} 22. dxe5 {[%emt 0:00:17]} Qxe5 {[%emt 0:03:29]} 23. Rxf8+ {[%emt 0:02:36]} Rxf8 {[%emt 0:00:50]} 24. a4 {[%emt 0:01:30]} h6 {[%emt 0:05:24]} *

[Event "EYTCC U18 Girls 2018"]
[Site "Bad Blankeburg"]
[Date "2018.07.13"]
[Round "2"]
[White "Antolak, Julia"]
[Black "Schulze, Lara"]
[Result "1/2-1/2"]
[ECO "C07"]
[WhiteElo "2282"]
[BlackElo "2187"]
[Annotator "NA"]
[PlyCount "161"]
[EventDate "2018.07.12"]
[EventType "swiss"]
[EventCountry "GER"]
[SourceTitle "playchess.com"]
[Source "ChessBase"]
[SourceQuality "1"]
[TimeControl "40/5400+30:1800+30"]

1. e4 {[%emt 0:00:00]} e6 {[%emt 0:00:00]} 2. d4 {[%emt 0:00:00]} d5 {[%emt 0:00:00]} 3. Nd2 {[%emt 0:00:00]} c5 {[%emt 0:00:00]} 4. exd5 {[%emt 0:00:00]} Qxd5 {[%emt 0:00:00]} 5. Ngf3 {[%emt 0:00:01]} cxd4 {[%emt 0:00:00]} 6. Bc4 {[%emt 0:00:03]} Qd6 {[%emt 0:00:00]} 7. O-O {[%emt 0:00:14]} Nf6 {[%emt 0:00:04]} 8. Nb3 {[%emt 0:00:11]} Nc6 {[%emt 0:00:06]} 9. Nbxd4 {[%emt 0:01:28]} Nxd4 {[%emt 0:00:06]} 10. Nxd4 {[%emt 0:00:07]} a6 {[%emt 0:00:07]} 11. Re1 {[%emt 0:00:52]} Qc7 {[%emt 0:00:16]} 12. Bf1 {[%emt 0:00:58]} Be7 {[%emt 0:04:21]} 13. c3 {[%emt 0:13:58]} O-O {[%emt 0:00:44]} 14. Qf3 {[%emt 0:05:25]} Re8 {[%emt 0:08:00]} 15. Bg5 {[%emt 0:05:32]} Nd5 $11 {[%emt 0:04:26]} 16. Bd2 {[%emt 0:06:42]} Bd6 {[%emt 0:10:28]} 17. h3 {[%emt 0:22:55]} Bd7 {[%emt 0:01:23]} 18. Re4 {[%emt 0:07:51]} Ne7 {[%emt 0:09:37]} 19. Qh5 {[%emt 0:04:46]} Ng6 {[%emt 0:04:23]} 20. Bd3 {[%emt 0:01:21]} f5 {[%emt 0:01:57]} 21. Ree1 {[%emt 0:02:12]} Nf4 {[%emt 0:02:04]} 22. Bxf4 {[%emt 0:01:38]} Bxf4 {[%emt 0:00:02]} 23. Qf3 {[%emt 0:03:01]} g6 {[%emt 0:07:53]} 24. Bc4 {[%emt 0:05:54]} Bh2+ {[%emt 0:01:12]} 25. Kh1 {[%emt 0:00:04]} Qxc4 {[%emt 0:00:59]} 26. Kxh2 {[%emt 0:00:04]} Qc7+ {[%emt 0:02:38]} 27. Kg1 {[%emt 0:00:32]} Kg7 {[%emt 0:09:03]} 28. Rad1 {[%emt 0:03:16]} e5 {[%emt 0:01:19]} 29. Nb3 {[%emt 0:00:12]} Bc6 {[%emt 0:01:00]} 30. Qe3 {[%emt 0:00:52]} Rad8 {[%emt 0:04:40]} 31. Qc5 {[%emt 0:01:51]} Rxd1 {[%emt 0:03:18]} 32. Rxd1 {[%emt 0:00:04]} Qe7 {[%emt 0:00:13]} 33. Qc4 {[%emt 0:00:45]} Qg5 {[%emt 0:01:17]} 34. Qf1 {[%emt 0:02:38]} Rd8 {[%emt 0:02:56]} 35. Rxd8 {[%emt 0:02:34]} Qxd8 {[%emt 0:00:01]} 36. Qe2 {[%emt 0:00:56]} Qd5 {[%emt 0:00:59]} 37. f3 {[%emt 0:00:16]} e4 {[%emt 0:08:19]} 38. Nd4 {[%emt 0:02:18]} Qxa2 {[%emt 0:04:38]} 39. Nxc6 {[%emt 0:03:11]} bxc6 {[%emt 0:01:41]} 40. fxe4 {[%emt 0:03:24]} Qb1+ {[%emt 0:05:08]} 41. Kf2 {[%emt 0:13:27]} fxe4 {[%emt 0:02:00]} 42. Ke3 {[%emt 0:00:35]} Kf6 {[%emt 0:11:41]} 43. Qxa6 {[%emt 0:08:28]} Qg1+ {[%emt 0:03:18]} 44. Kxe4 {[%emt 0:00:34]} Qxg2+ {[%emt 0:01:02]} 45. Kd4 {[%emt 0:02:41]} Qf2+ {[%emt 0:09:18]} 46. Ke4 {[%emt 0:00:40]} Qh4+ {[%emt 0:00:16]} 47. Ke3 {[%emt 0:04:30]} Qxh3+ {[%emt 0:00:13]} 48. Kd4 {[%emt 0:00:32]} Qd7+ {[%emt 0:01:29]} 49. Ke3 {[%emt 0:02:43]} Qe6+ {[%emt 0:00:53]} 50. Kf2 {[%emt 0:00:45]} h5 {[%emt 0:01:07]} 51. Qa8 {[%emt 0:00:34]} Kg5 {[%emt 0:00:55]} 52. Qb8 {[%emt 0:00:49]} h4 {[%emt 0:01:26]} 53. b4 {[%emt 0:00:24]} Qf6+ {[%emt 0:00:36]} 54. Kg2 {[%emt 0:00:31]} Qxc3 {[%emt 0:00:55]} 55. Qd8+ {[%emt 0:00:23]} Kh5 {[%emt 0:01:45]} 56. Qe7 {[%emt 0:01:21]} Qd2+ {[%emt 0:02:24]} 57. Kh3 {[%emt 0:00:28]} Qd3+ {[%emt 0:00:54]} 58. Kg2 {[%emt 0:00:10]} Qg3+ {[%emt 0:00:33]} 59. Kh1 {[%emt 0:00:07]} Qf3+ {[%emt 0:02:12]} 60. Kh2 {[%emt 0:00:13]} Kg4 {[%emt 0:00:48]} 61. Qe6+ {[%emt 0:00:34]} Kg5 {[%emt 0:00:28]} 62. Qe7+ {[%emt 0:01:01]} Qf6 {[%emt 0:00:28]} 63. Qc5+ {[%emt 0:00:07]} Kh6 {[%emt 0:00:34]} 64. b5 {[%emt 0:01:11]} Qb2+ {[%emt 0:00:45]} 65. Kh3 {[%emt 0:00:24]} cxb5 {[%emt 0:00:31]} 66. Qe3+ {[%emt 0:00:58]} g5 {[%emt 0:00:24]} 67. Qe6+ {[%emt 0:00:08]} Kg7 {[%emt 0:00:30]} 68. Qe7+ {[%emt 0:00:44]} Kg6 {[%emt 0:00:05]} 69. Qxg5+ {[%emt 0:00:19]} Kf7 {[%emt 0:00:28]} 70. Qf5+ {[%emt 0:00:28]} Ke7 {[%emt 0:00:07]} 71. Qh7+ {[%emt 0:00:53]} Kd6 {[%emt 0:00:10]} 72. Qg6+ {[%emt 0:00:35]} Kc5 {[%emt 0:00:39]} 73. Qg5+ {[%emt 0:00:12]} Kb4 {[%emt 0:00:52]} 74. Qe7+ {[%emt 0:00:13]} Kb3 {[%emt 0:01:06]} 75. Qe6+ {[%emt 0:00:06]} Kc2 {[%emt 0:00:39]} 76. Qe4+ {[%emt 0:00:31]} Kc3 {[%emt 0:00:30]} 77. Qe5+ {[%emt 0:00:18]} Kc2 {[%emt 0:00:02]} 78. Qe4+ {[%emt 0:00:11]} Kd2 {[%emt 0:00:10]} 79. Qf4+ {[%emt 0:00:15]} Ke1 {[%emt 0:01:13]} 80. Qxh4+ {[%emt 0:01:24]} Qf2 {[%emt 0:00:03]} 81. Qb4+ {[%emt 0:00:18]} 1/2-1/2